bitfinex-derivatives/quotes_SOLF0:USTF0_20250106
["timestamp","ask_amount","ask_price","bid_price","bid_amount"]
[1736151954795,7.28870354,215.48,215.4,7.28870354]
[1736151955795,2.3217,215.43,215.4,7.28870354]
[1736151955986,2.64,215.42,215.4,7.28870354]
[1736151958797,2.64,215.42,215.41,7.28870354]
[1736151961198,2.64,215.42,215.41,9.61060354]
[1736151961904,2.64,215.45,215.42,2.3218]
[1736151962105,2.64,215.45,215.43,7.28870354]
[1736151962603,2.64,215.45,215.43,9.61040354]
[1736151962800,2.64,215.45,215.43,7.28870354]
[1736151966400,2.64,215.45,215.42,2.3218]
[1736151966602,2.64,215.45,215.41,2.3219]
[1736151966799,2.64,215.45,215.42,7.28870354]
[1736151973905,2.3216,215.44,215.36,2.3224]
[1736151974209,2.3216,215.44,215.41,7.28870354]
[1736151975008,2.322,215.4,215.35,2.3225]
[1736151975309,2.322,215.4,215.37,7.28870354]
[1736151975606,4.962,215.4,215.37,7.28870354]
[1736151976198,2.64,215.4,215.37,7.28870354]
[1736151976403,2.3222,215.39,215.37,7.28870354]
[1736151976805,9.92870354,215.4,215.3,2.323]
[1736151977006,9.92870354,215.4,215.33,7.28870354]
[1736151977403,9.92870354,215.4,215.3,2.323]
[1736151977606,9.92870354,215.4,215.33,7.28870354]
[1736151978010,9.92870354,215.4,215.25,2.64]
[1736151978011,7.28870354,215.38,215.27,2.3234]
[1736151978209,7.28870354,215.38,215.3,7.28870354]
[1736151978605,8.71100354,215.38,215.3,7.28870354]
[1736151979506,8.71100354,215.38,215.23,2.64]
[1736151979709,2.3229,215.33,215.29,7.28870354]
[1736151979905,4.9629,215.33,215.29,7.28870354]
[1736151980211,2.3229,215.32,215.29,7.28870354]
[1736151981009,2.323,215.31,215.26,2.3234]
[1736151981304,2.323,215.31,215.29,7.28870354]
[1736151982115,2.323,215.31,215.27,7.28870354]
[1736151983413,2.323,215.31,215.27,9.61210354]
[1736151983615,2.3229,215.32,215.27,9.61210354]
[1736151983915,2.3229,215.32,215.29,7.28870354]
[1736151984623,2.64,215.37,215.31,7.28870354]
[1736151984815,2.64,215.37,215.35,7.28870354]
[1736151985518,2.64,215.37,215.33,7.28870354]
[1736151986424,2.64,215.37,215.33,9.61150354]
[1736151987023,2.64,215.37,215.33,7.28870354]
[1736151989020,4.9624,215.37,215.33,7.28870354]
[1736151990328,2.3225,215.36,215.33,7.28870354]
[1736151991929,2.3227,215.35,215.31,7.28870354]
[1736151992132,7.28870354,215.36,215.29,7.28870354]
[1736151992526,7.28870354,215.36,215.22,2.62]
[1736151993023,7.28870354,215.36,215.28,7.28870354]
[1736151993327,2.323,215.31,215.28,7.28870354]
[1736151993529,4.943,215.31,215.28,7.28870354]
[1736151994029,2.62,215.31,215.28,7.28870354]
[1736151994230,2.3232,215.3,215.28,7.28870354]
[1736151996729,2.3232,215.29,215.23,2.3238]
[1736151996924,2.3232,215.29,215.27,7.28870354]
[1736151997535,2.3236,215.26,215.24,7.28870354]
[1736151999036,2.3235,215.27,215.24,7.28870354]
[1736152001428,2.62,215.26,215.24,7.28870354]
[1736152001634,2.62,215.26,215.23,9.61250354]
[1736152002334,2.62,215.26,215.23,2.3238]
[1736152002535,2.62,215.26,215.23,9.61250354]
[1736152003740,2.62,215.26,215.23,7.28870354]
[1736152003942,2.62,215.26,215.24,2.3238]
[1736152008845,2.62,215.26,215.25,9.61230354]
[1736152009139,2.62,215.26,215.25,2.3236]
[1736152010332,2.62,215.26,215.24,2.3237]
[1736152011137,2.62,215.26,215.25,2.3236]
[1736152013434,10.24020354,215.3,215.26,2.3235]
[1736152013644,2.62,215.29,215.26,2.3235]
[1736152014240,2.3229,215.32,215.27,2.3234]
[1736152014443,2.62,215.31,215.25,7.28870354]
[1736152014638,2.62,215.3,215.25,7.28870354]
[1736152014841,2.62,215.3,215.28,2.3232]
[1736152015244,2.62,215.3,215.27,7.28870354]
[1736152015440,2.62,215.3,215.27,9.61200354]
[1736152016144,2.62,215.3,215.28,2.3233]
[1736152016838,2.6,215.31,215.28,2.3233]
[1736152017041,2.3227,215.34,215.29,2.3232]
[1736152017240,2.6,215.33,215.29,2.3232]
[1736152018947,2.6,215.33,215.27,7.28870354]
[1736152019140,2.6,215.33,215.29,7.28870354]
[1736152019141,4.9228,215.33,215.29,7.28870354]
[1736152019348,2.6,215.33,215.29,7.28870354]
[1736152019539,2.6,215.33,215.27,7.28870354]
[1736152019739,4.9228,215.33,215.28,2.3233]
[1736152022544,3.48581251,215.39,215.29,7.28870354]
[1736152022845,9.88870354,215.38,215.29,7.28870354]
[1736152023740,2.3225,215.36,215.3,2.323]
[1736152023936,2.6,215.35,215.3,2.323]
[1736152025445,4.9226,215.35,215.3,2.323]
[1736152025642,2.6,215.35,215.27,2.3233]
[1736152025842,2.6,215.35,215.27,9.61200354]
[1736152026244,2.3228,215.33,215.27,9.61200354]
[1736152030248,2.3229,215.32,215.27,9.61200354]
[1736152033454,2.3233,215.28,215.24,2.3237]
[1736152033657,2.3233,215.28,215.24,9.61240354]
[1736152035947,2.3233,215.28,215.26,7.28870354]
[1736152039252,2.3228,215.33,215.26,7.28870354]
[1736152039452,2.6,215.34,215.29,7.28870354]
[1736152040453,2.3226,215.35,215.3,2.3231]
[1736152040653,2.6,215.34,215.3,2.3231]
[1736152044857,2.6,215.34,215.29,7.28870354]
[1736152045059,2.6,215.34,215.32,2.3229]
[1736152045264,2.6,215.36,215.32,2.3229]
[1736152048161,7.28870354,215.39,215.23,4.4289]
[1736152048162,2.3222,215.39,215.34,2.3227]
[1736152048465,4.9022,215.39,215.35,7.28870354]
[1736152048663,2.58,215.39,215.35,7.28870354]
[1736152048858,2.3223,215.38,215.35,7.28870354]
[1736152051564,2.3225,215.36,215.31,2.3229]
[1736152051759,2.3225,215.36,215.32,7.28870354]
[1736152051967,2.3221,215.39,215.34,7.28870354]
[1736152052167,9.86870354,215.41,215.34,7.28870354]
[1736152052670,2.3226,215.35,215.32,7.28870354]
[1736152053070,2.3226,215.35,215.3,2.3231]
[1736152053270,2.3226,215.35,215.31,7.28870354]
[1736152059068,2.58,215.37,215.31,7.28870354]
[1736152059269,9.86870354,215.37,215.27,2.3234]
[1736152059466,9.86870354,215.37,215.29,7.28870354]
[1736152059871,2.323,215.32,215.29,7.28870354]
[1736152062572,2.323,215.32,215.29,9.61190354]
[1736152065174,9.86870354,215.37,215.31,7.28870354]
[1736152065373,2.3228,215.33,215.31,7.28870354]
[1736152068279,2.58,215.37,215.31,7.28870354]
[1736152068478,2.3225,215.36,215.33,7.28870354]
[1736152073683,2.3225,215.36,215.31,9.61170354]
[1736152073985,9.86870354,215.37,215.29,7.28870354]
[1736152075084,2.58,215.37,215.29,7.28870354]
[1736152075280,9.86870354,215.37,215.29,7.28870354]
[1736152075475,2.3227,215.34,215.29,9.61190354]
[1736152076874,2.3227,215.34,215.3,7.28870354]
[1736152077078,2.3229,215.33,215.28,2.3233]
[1736152077278,2.3229,215.33,215.3,7.28870354]
[1736152078281,2.58,215.32,215.26,2.3234]
[1736152078482,2.58,215.32,215.2,69.97192321]
[1736152078679,2.58,215.32,215.26,7.28870354]
[1736152079081,2.58,215.32,215.2,69.97192321]
[1736152079380,2.58,215.32,215.25,7.28870354]
[1736152079785,2.3233,215.29,215.25,7.28870354]
[1736152079982,2.58,215.32,215.25,7.28870354]
[1736152081984,2.3231,215.3,215.25,7.28870354]
[1736152082183,2.3231,215.3,215.27,7.28870354]
[1736152084692,4.903,215.32,215.27,7.28870354]
[1736152084991,4.903,215.32,215.27,9.61200354]
[1736152085586,2.58,215.32,215.27,7.28870354]
[1736152085788,2.58,215.32,215.28,2.3233]
[1736152088194,2.58,215.32,215.26,2.3234]
[1736152088486,2.58,215.32,215.25,7.28870354]
[1736152088684,4.903,215.32,215.27,7.28870354]
[1736152088883,2.58,215.32,215.27,7.28870354]
[1736152089489,2.323,215.31,215.27,9.61210354]
[1736152089788,2.58,215.32,215.27,9.61210354]
[1736152090089,2.58,215.32,215.28,2.3233]
[1736152091893,2.58,215.31,215.28,2.3233]
[1736152092990,2.58,215.31,215.27,7.28870354]
[1736152093189,2.3231,215.3,215.27,7.28870354]
[1736152093885,7.28870354,215.29,215.17,4.4323]
[1736152094084,2.58,215.31,215.15,25.77327656]
[1736152094085,7.28870354,215.27,215.15,25.77327656]
[1736152094293,2.58,215.26,215.23,7.28870354]
[1736152095093,4.9036,215.26,215.23,7.28870354]
[1736152095295,2.58,215.26,215.21,7.28870354]
[1736152096095,4.9036,215.26,215.21,7.28870354]
[1736152096393,2.58,215.26,215.21,7.28870354]
[1736152096795,2.3237,215.25,215.21,7.28870354]
[1736152097884,2.3239,215.23,215.19,7.28870354]
[1736152098086,2.3239,215.23,215.17,2.3244]
[1736152098286,7.28870354,215.25,215.17,2.3244]
[1736152098493,7.28870354,215.25,215.18,7.28870354]
[1736152099496,2.3241,215.22,215.18,7.28870354]
[1736152099890,7.28870354,215.25,215.19,2.3243]
[1736152100195,2.3239,215.23,215.19,2.3243]
[1736152100596,2.3238,215.24,215.2,9.61280354]
[1736152100989,2.3238,215.24,215.2,7.28870354]
[1736152107206,2.3237,215.25,215.2,9.61290354]
[1736152107902,9.86870354,215.26,215.2,9.61290354]
[1736152107903,9.86870354,215.26,215.2,7.28870354]
[1736152108107,2.3238,215.24,215.2,7.28870354]
[1736152109102,1.5292,215.29,215.11,6.8528]
[1736152109302,15.4023,215.4,215.28,7.28870354]
[1736152109504,1.5351,215.4,215.34,7.28870354]
[1736152109906,1.5351,215.4,215.22,4.4341]
[1736152110110,127.92674,215.41,215.35,7.28870354]
[1736152110311,3.24,215.4,215.35,7.28870354]
[1736152110513,3.24,215.39,215.34,2.3226]
[1736152110713,3.24,215.39,215.34,7.28870354]
[1736152110914,3.24,215.39,215.36,7.28870354]
[1736152111117,3.24,215.39,215.26,44.18500988]
[1736152111315,3.24,215.39,215.36,7.28870354]
[1736152111712,3.24,215.39,215.34,2.3227]
[1736152111923,3.24,215.39,215.32,7.28870354]
[1736152112209,7.28870354,215.38,215.26,44.18500988]
[1736152112410,7.28870354,215.38,215.29,7.28870354]
[1736152112609,7.28870354,215.36,215.29,7.28870354]
[1736152112808,7.28870354,215.36,215.29,2.3232]
[1736152113017,7.28870354,215.37,215.29,2.3232]
[1736152113408,7.28870354,215.37,215.26,44.18500988]
[1736152113609,7.28870354,215.37,215.28,7.28870354]
[1736152114712,7.28870354,215.37,215.28,9.61200354]
[1736152115413,7.28870354,215.37,215.29,2.3232]
[1736152116820,7.28870354,215.37,215.3,2.3231]
[1736152117211,7.28870354,215.33,215.26,51.47371342]
[1736152117409,3.24,215.32,215.26,51.47371342]
[1736152118426,3.24,215.32,215.28,2.3232]
[1736152119022,3.24,215.32,215.29,2.3232]
[1736152119422,3.24,215.32,215.28,7.28870354]
[1736152120025,3.24,215.32,215.3,2.3231]
[1736152122021,7.28870354,215.31,215.22,4.4341]
[1736152122225,7.28870354,215.29,215.21,7.28870354]
[1736152124625,9.61190354,215.29,215.21,7.28870354]
[1736152126128,2.3233,215.28,215.2,2.3241]
[1736152126329,2.3233,215.28,215.2,9.61280354]
[1736152127022,7.28870354,215.27,215.2,9.61280354]
[1736152127324,3.24,215.26,215.2,9.61280354]
[1736152128126,5.5636,215.26,215.2,2.3241]
[1736152130028,2.3237,215.25,215.19,9.61300354]
[1736152136532,7.28870354,215.27,215.21,7.28870354]
[1736152136834,3.24,215.29,215.23,7.28870354]
[1736152137332,3.24,215.29,215.25,2.3236]
[1736152139834,7.28870354,215.3,215.25,2.3236]
[1736152140138,3.22,215.29,215.25,2.3236]
[1736152140937,3.22,215.29,215.24,2.3237]
[1736152141136,3.22,215.29,215.23,7.28870354]
[1736152141338,7.28870354,215.28,215.21,7.28870354]
[1736152141636,2.3234,215.27,215.21,9.61280354]
[1736152142141,2.3234,215.27,215.22,2.324]
[1736152143536,7.28870354,215.28,215.22,2.324]
[1736152143742,3.22,215.29,215.23,7.28870354]
[1736152143937,3.22,215.29,215.25,7.28870354]
[1736152144341,3.22,215.29,215.22,7.28870354]
[1736152145945,5.5433,215.29,215.24,2.3237]
[1736152147447,2.3233,215.28,215.22,9.61260354]
[1736152148041,2.3233,215.28,215.23,2.3238]
[1736152148642,10.50870354,215.29,215.21,2.324]
[1736152149443,2.3235,215.26,215.21,2.324]
[1736152151352,7.28870354,215.27,215.2,7.28870354]
[1736152151553,7.28870354,215.27,215.15,4.2872]
[1736152151743,7.28870354,215.27,215.19,7.28870354]
[1736152152152,7.28870354,215.25,215.12,63.92220083]
[1736152152356,7.28870354,215.25,215.18,7.28870354]
[1736152153449,2.324,215.22,215.18,7.28870354]
[1736152153652,3.22,215.21,215.18,7.28870354]
[1736152155559,3.22,215.21,215.18,9.61310354]
[1736152155956,3.22,215.21,215.15,2.3247]
[1736152156153,10.50870354,215.21,215.14,7.28870354]
[1736152156652,7.28870354,215.19,215.12,7.28870354]
[1736152157256,7.28870354,215.19,215.09,25.7078288]
[1736152157454,7.28870354,215.19,215.04,133.2775849]
[1736152157455,7.28870354,215.17,215.1,7.28870354]
[1736152158270,2.325,215.13,215.08,2.3255]
[1736152158465,5.545,215.13,215.09,7.28870354]
[1736152159966,3.22,215.13,215.09,7.28870354]
[1736152160166,2.325,215.12,215.09,7.28870354]
[1736152160366,3.22,215.13,215.09,7.28870354]
[1736152160868,2.325,215.12,215.09,7.28870354]
[1736152161064,2.325,215.12,215.07,2.3256]
[1736152161267,2.325,215.12,215.09,7.28870354]
[1736152161869,2.325,215.12,215.08,9.61420354]
[1736152164866,3.22,215.13,215.08,7.28870354]
[1736152165071,3.22,215.13,214.97,4.4116]
[1736152165273,3.22,215.13,215.07,7.28870354]
[1736152165774,2.3251,215.12,215.01,2.3262]
[1736152165967,10.50870354,215.13,215.06,7.28870354]
[1736152166368,10.50870354,215.13,214.97,4.4116]
[1736152166571,10.50870354,215.13,215.06,7.28870354]
[1736152166572,3.22,215.13,215.06,7.28870354]
[1736152167469,2.3252,215.11,215.06,7.28870354]
[1736152168170,5.545,215.13,215.09,2.3254]
[1736152168372,3.22,215.13,215.08,7.28870354]
[1736152168872,9.61340354,215.15,215.1,2.3253]
[1736152169071,3.12,215.12,215.1,2.3253]
[1736152169372,9.61340354,215.15,215.1,2.3253]
[1736152169573,3.12,215.14,215.1,2.3253]
[1736152169875,9.61340354,215.15,215.1,2.3253]
[1736152170073,3.12,215.14,215.1,2.3253]
[1736152170275,9.61340354,215.15,215.1,2.3253]
[1736152170471,3.12,215.14,215.1,2.3253]
[1736152170774,5.4449,215.14,215.09,2.3253]
[1736152172569,2.325,215.13,215.08,7.28870354]
[1736152172772,7.28870354,215.13,215.07,2.3255]
[1736152173169,2.3251,215.12,215.06,9.61440354]
[1736152177977,2.3252,215.11,215.06,9.61440354]
[1736152183282,2.3252,215.11,215.06,7.28870354]
[1736152183579,2.3252,215.11,215.07,2.3256]
[1736152184680,2.3252,215.11,215.08,7.28870354]
[1736152190882,2.3252,215.11,215.07,2.3256]
[1736152191974,7.28870354,215.13,215.05,7.28870354]
[1736152192375,7.28870354,215.13,215.04,7.28870354]
[1736152193288,2.3255,215.09,215.04,9.61450354]
[1736152193479,3.12,215.08,215.04,9.61450354]
[1736152194283,5.4455,215.08,215.04,9.61450354]
[1736152201193,3.12,215.08,214.96,64.15609133]
[1736152201392,10.40870354,215.08,215.01,7.28870354]
[1736152201593,10.40870354,215.08,214.96,64.15609133]
[1736152201893,3.12,215.08,215.02,7.28870354]
[1736152202092,3.12,215.08,215.04,2.3258]
[1736152202995,5.4455,215.08,215.04,2.3258]
[1736152208599,2.3256,215.07,215.03,2.326]
[1736152209097,2.326,215.04,214.96,64.15609133]
[1736152209301,7.28870354,215.05,214.98,7.28870354]
[1736152209697,9.61460354,215.05,215.0,2.3263]
[1736152209898,7.28870354,215.03,214.98,7.28870354]
[1736152210092,2.98,215.02,214.96,64.15609133]
[1736152210297,2.98,215.02,214.98,2.3265]
[1736152211398,5.3062,215.02,214.98,2.3265]
[1736152213301,2.98,215.02,214.97,7.28870354]
[1736152213496,2.98,215.02,214.99,2.3264]
[1736152213700,3.49003869,215.1,214.94,1.4648]
[1736152213701,2.98,215.05,215.01,7.28870354]
[1736152213895,2.98,215.05,215.04,7.28870354]
[1736152214203,2.98,215.05,215.04,9.61460354]
[1736152215799,2.98,215.05,214.95,2.9891]
[1736152215800,2.98,215.05,215.0,7.28870354]
[1736152216303,2.98,215.05,215.02,7.28870354]
[1736152216704,10.26870354,215.05,215.0,7.28870354]
[1736152216904,10.26870354,215.05,214.98,7.28870354]
[1736152218003,2.326,215.03,214.99,2.3264]
[1736152218907,10.26870354,215.05,214.98,7.28870354]
[1736152219095,12.59460354,215.05,215.0,2.3263]
[1736152219606,2.326,215.04,215.0,2.3263]
[1736152219799,2.98,215.03,215.0,2.3263]
[1736152221402,9.61450354,215.05,215.0,2.3263]
[1736152221707,2.98,215.02,215.0,9.61500354]
[1736152223105,2.98,215.02,215.01,2.3262]
[1736152223604,2.98,215.03,215.0,7.28870354]
[1736152223807,2.98,215.03,215.02,9.61470354]
[1736152225907,2.3256,215.07,215.02,9.61470354]
[1736152226104,2.98,215.03,215.02,2.326]
[1736152226805,2.98,215.03,215.01,2.3262]
[1736152227010,2.98,215.03,214.98,7.28870354]
[1736152227510,5.306,215.03,214.99,2.3264]
[1736152230407,5.306,215.03,215.0,7.28870354]
[1736152232706,2.98,215.03,214.97,2.3266]
[1736152232905,2.98,215.03,214.97,9.61530354]
[1736152233613,2.98,215.03,214.97,2.3266]
[1736152233805,2.98,215.03,214.96,7.28870354]
[1736152234009,2.3264,215.0,214.96,9.61550354]
[1736152235111,2.3264,215.0,214.96,9.61540354]
[1736152237208,2.98,215.03,214.89,2.9489]
[1736152237209,2.3265,214.99,214.89,2.9489]
[1736152237414,2.88,214.98,214.95,9.61560354]
[1736152238616,2.3267,214.97,214.93,2.327]
[1736152238821,2.3267,214.97,214.93,9.61570354]
[1736152239512,10.16870354,214.98,214.87,1.3918]
[1736152239718,10.16870354,214.98,214.91,7.28870354]
[1736152241507,10.16870354,214.98,214.91,9.61600354]
[1736152242221,7.28870354,214.96,214.89,9.61620354]
[1736152243110,7.28870354,214.96,214.89,2.3275]
[1736152243313,7.28870354,214.96,214.89,9.61620354]
[1736152243715,2.3272,214.93,214.89,9.61620354]
[1736152243915,2.88,214.92,214.89,9.61620354]
[1736152245616,2.88,214.92,214.9,2.3274]
[1736152248613,2.88,214.92,214.89,9.61620354]
[1736152251017,2.88,214.92,214.9,2.3274]
[1736152251820,2.88,214.92,214.91,2.3273]
[1736152252819,2.3269,214.96,214.92,2.3272]
[1736152253013,2.88,214.95,214.92,2.3272]
[1736152256421,5.207,214.95,214.91,9.61600354]
[1736152258021,5.207,214.95,214.91,2.3273]
[1736152259626,2.327,214.95,214.91,2.3273]
[1736152259923,7.28870354,215.03,214.96,2.3268]
[1736152260123,2.82,215.02,214.85,62.45900929]
[1736152260324,2.3264,215.0,214.97,7.28870354]
[1736152260521,2.82,215.02,214.85,62.45900929]
[1736152260522,7.28870354,215.01,214.94,7.28870354]
[1736152260715,2.82,215.02,214.92,7.28870354]
[1736152260716,7.28870354,214.99,214.92,7.28870354]
[1736152260915,7.28870354,214.99,214.83,2.9292]
[1736152261119,2.3268,214.97,214.91,9.61590354]
[1736152261321,2.82,214.96,214.91,9.61590354]
[1736152262522,5.1468,214.96,214.91,9.61590354]
[1736152263124,2.82,214.96,214.91,9.61590354]
[1736152263323,7.28870354,214.95,214.9,2.3274]
[1736152264528,2.327,214.94,214.9,2.3274]
[1736152264926,7.28870354,214.95,214.9,2.3274]
[1736152265719,7.28870354,214.95,214.91,2.3273]
[1736152265923,7.28870354,214.95,214.89,7.28870354]
[1736152266326,7.28870354,214.95,214.89,9.61610354]
[1736152266830,2.3271,214.93,214.89,9.61610354]
[1736152267236,2.3275,214.9,214.83,2.9292]
[1736152267436,2.82,214.89,214.85,7.28870354]
[1736152268434,2.82,214.89,214.85,9.61660354]
[1736152268838,2.82,214.89,214.85,7.28870354]
[1736152269038,2.82,214.89,214.86,2.3278]
[1736152269332,9.61650354,214.87,214.81,7.28870354]
[1736152269840,9.61650354,214.87,214.82,2.3282]
[1736152270441,9.61650354,214.87,214.81,7.28870354]
[1736152271141,9.61650354,214.87,214.82,2.3283]
[1736152271444,2.3279,214.86,214.82,2.3283]
[1736152271635,7.28870354,214.87,214.82,2.3283]
[1736152272338,2.3279,214.86,214.82,2.3283]
[1736152272738,2.3279,214.86,214.81,9.61710354]
[1736152273632,2.3281,214.85,214.81,2.3284]
[1736152273838,2.82,214.84,214.81,2.3284]
[1736152282246,7.28870354,214.83,214.72,62.32055689]
[1736152282446,7.28870354,214.81,214.74,7.28870354]
[1736152282843,2.82,214.84,214.71,7.28870354]
[1736152282844,7.28870354,214.77,214.71,7.28870354]
[1736152283043,2.82,214.76,214.71,7.28870354]
[1736152283247,2.82,214.76,214.74,2.3291]
[1736152283540,2.82,214.76,214.6,6.45532573]
[1736152283849,2.82,214.76,214.53,136.1007147]
[1736152283850,7.28870354,214.75,214.71,2.3294]
[1736152284538,2.3292,214.74,214.69,2.3296]
[1736152285542,2.3292,214.74,214.68,7.28870354]
[1736152285747,2.3292,214.74,214.7,2.3296]
[1736152289743,2.3292,214.74,214.61,4.4111]
[1736152289744,7.28870354,214.75,214.61,4.4111]
[1736152289950,2.3295,214.71,214.67,2.3299]
[1736152290251,2.76,214.7,214.65,7.28870354]
[1736152290752,2.76,214.7,214.67,2.3299]
[1736152291851,2.76,214.7,214.64,7.28870354]
[1736152292052,2.76,214.7,214.66,7.28870354]
[1736152293150,2.76,214.7,214.67,2.3299]
[1736152293351,2.76,214.7,214.66,7.28870354]
[1736152294459,2.76,214.7,214.52,7.0424]
[1736152294658,2.76,214.7,214.65,7.28870354]
[1736152295055,7.28870354,214.67,214.52,4.2824]
[1736152295254,7.28870354,214.65,214.52,4.2824]
[1736152295451,2.76,214.64,214.58,7.28870354]
[1736152295657,2.3304,214.63,214.58,7.28870354]
[1736152296061,9.61910354,214.63,214.56,7.28870354]
[1736152296960,9.61910354,214.63,214.59,2.3308]
[1736152296961,7.28870354,214.63,214.59,2.3308]
[1736152297956,7.28870354,214.63,214.6,2.3306]
[1736152298160,2.76,214.64,214.62,7.28870354]
[1736152298861,2.76,214.64,214.63,2.3304]
[1736152301161,2.76,214.64,214.62,2.3305]
[1736152301859,2.76,214.64,214.63,2.3304]
[1736152306754,2.8826,214.74,214.62,7.28870354]
[1736152306957,7.28870354,214.73,214.66,7.28870354]
[1736152307166,2.76,214.72,214.66,7.28870354]
[1736152308264,2.76,214.72,214.67,2.3298]
[1736152308562,7.28870354,214.71,214.66,7.28870354]
[1736152309064,7.28870354,214.71,214.64,7.28870354]
[1736152309262,2.76,214.7,214.64,7.28870354]
[1736152309964,2.76,214.7,214.67,2.3298]
[1736152311566,7.28870354,214.69,214.6,7.28870354]
[1736152311768,7.28870354,214.67,214.6,7.28870354]
[1736152312072,9.61860354,214.67,214.6,7.28870354]
[1736152312461,9.61860354,214.67,214.62,2.3305]
[1736152312666,9.61860354,214.67,214.6,7.28870354]
[1736152313370,7.28870354,214.67,214.6,7.28870354]
[1736152313672,7.28870354,214.67,214.62,7.28870354]
[1736152314464,7.28870354,214.67,214.64,2.3302]
[1736152314665,5.0896,214.7,214.62,7.28870354]
[1736152314866,7.28870354,214.69,214.62,7.28870354]
[1736152315376,9.61840354,214.69,214.64,2.3302]
[1736152315674,9.61840354,214.69,214.62,7.28870354]
[1736152316171,9.61840354,214.69,214.64,2.3302]
[1736152319478,2.3294,214.72,214.68,2.3298]
[1736152319777,2.8826,214.74,214.54,4.6627]
[1736152319778,7.28870354,214.69,214.62,7.28870354]
[1736152320769,7.28870354,214.69,214.54,4.6627]
[1736152320973,7.28870354,214.67,214.59,7.28870354]
[1736152321168,2.72,214.66,214.59,7.28870354]
[1736152321579,2.72,214.66,214.63,2.3303]
[1736152322472,2.72,214.66,214.59,7.28870354]
[1736152323571,2.3303,214.64,214.61,2.3306]
[1736152325281,2.72,214.66,214.64,2.3302]
[1736152325681,2.72,214.66,214.59,7.28870354]
[1736152326074,2.3302,214.65,214.61,2.3306]
[1736152326277,2.72,214.66,214.61,2.3306]
[1736152326478,2.72,214.66,214.59,7.28870354]
[1736152326675,7.28870354,214.65,214.59,7.28870354]
[1736152326880,7.28870354,214.61,214.52,68.57206789]
[1736152327076,2.72,214.6,214.54,7.28870354]
[1736152327481,5.0508,214.6,214.56,2.3311]
[1736152327789,2.72,214.6,214.48,25.82130293]
[1736152328082,7.28870354,214.59,214.56,2.331]
[1736152328478,7.28870354,214.59,214.47,4.4016]
[1736152328782,7.28870354,214.57,214.54,2.3313]
[1736152329079,7.28870354,214.57,214.51,7.28870354]
[1736152329780,2.331,214.58,214.54,2.3313]
[1736152329980,7.28870354,214.59,214.54,2.3313]
[1736152330181,7.28870354,214.59,214.53,2.3314]
[1736152330482,7.28870354,214.59,214.51,7.28870354]
[1736152330979,7.28870354,214.59,214.55,2.3312]
[1736152331185,7.28870354,214.59,214.53,7.28870354]
[1736152331581,7.28870354,214.59,214.54,2.3312]
[1736152331783,7.28870354,214.59,214.53,7.28870354]
[1736152332285,7.28870354,214.59,214.56,2.3311]
[1736152332986,7.28870354,214.59,214.53,7.28870354]
[1736152333187,2.72,214.58,214.57,2.331]
[1736152334586,7.28870354,214.61,214.58,2.3308]
[1736152334889,2.72,214.6,214.55,7.28870354]
[1736152335085,7.28870354,214.62,214.57,2.3309]
[1736152335281,2.72,214.61,214.57,2.3309]
[1736152336489,5.0507,214.61,214.57,2.3309]
[1736152337188,9.61940354,214.6,214.53,7.28870354]
[1736152337786,9.61940354,214.6,214.55,2.3311]
[1736152338289,9.61940354,214.6,214.42,13.55832573]
[1736152338290,7.28870354,214.58,214.54,2.3313]
[1736152338682,7.28870354,214.58,214.51,7.28870354]
[1736152339281,7.28870354,214.56,214.42,4.383]
[1736152339486,7.28870354,214.53,214.46,7.28870354]
[1736152339785,2.72,214.52,214.5,2.3317]
[1736152339990,3.49760492,214.63,214.5,7.28870354]
[1736152340191,7.28870354,214.59,214.52,7.28870354]
[1736152340886,2.72,214.58,214.52,7.28870354]
[1736152341086,2.72,214.58,214.54,2.3312]